[Event "Titled Tuesday Blitz January 17 Early 2023"]
[White "Rohith Krishna S"]
[Black "Valle Maytin, Luis Enrique"]
[WhiteFideId "46617051"]
[BlackFideId "3503666"]
[WhiteElo "2385"]
[BlackElo "2241"]
[Result "1-0"]
[Round "02"]
[TimeControl "180+2"]
[Date "2023.01.17"]
[WhiteClock "0:00:15"]
[BlackClock "0:00:11"]

1. e4 {[%clk 0:03:00]}  c6 {[%clk 0:02:59]} 2. Nf3 {[%clk 0:02:58]}  d5 {[%clk 0:02:59]} 3. d3 {[%clk 0:02:58]}  dxe4 {[%clk 0:02:52]} 4. dxe4 {[%clk 0:02:59]}  Qxd1+ {[%clk 0:02:52]} 5. Kxd1 {[%clk 0:03:00]}  Bg4 {[%clk 0:02:52]} 6. Be3 {[%clk 0:02:51]}  Nd7 {[%clk 0:02:51]} 7. Nd2 {[%clk 0:02:51]}  e6 {[%clk 0:02:47]} 8. c3 {[%clk 0:02:50]}  Ngf6 {[%clk 0:02:31]} 9. a4 {[%clk 0:02:48]}  Bc5 {[%clk 0:02:09]} 10. h3 {[%clk 0:02:44]}  Bxf3+ {[%clk 0:02:06]} 11. gxf3 {[%clk 0:02:43]}  O-O-O {[%clk 0:01:59]} 12. Kc2 {[%clk 0:02:43]}  e5 {[%clk 0:01:36]} 13. Bc4 {[%clk 0:02:38]}  Rhf8 {[%clk 0:01:33]} 14. a5 {[%clk 0:02:38]}  Ne8 {[%clk 0:01:05]} 15. h4 {[%clk 0:02:19]}  f6 {[%clk 0:00:50]} 16. Be6 {[%clk 0:02:14]}  Bxe3 {[%clk 0:00:50]} 17. fxe3 {[%clk 0:02:14]}  Kc7 {[%clk 0:00:50]} 18. b4 {[%clk 0:02:13]}  Nd6 {[%clk 0:00:45]} 19. h5 {[%clk 0:02:12]}  Rde8 {[%clk 0:00:41]} 20. Bb3 {[%clk 0:01:48]}  Re7 {[%clk 0:00:40]} 21. Rag1 {[%clk 0:01:44]}  c5 {[%clk 0:00:26]} 22. Rh4 {[%clk 0:01:35]}  b6 {[%clk 0:00:22]} 23. axb6+ {[%clk 0:01:22]}  axb6 {[%clk 0:00:20]} 24. Rhg4 {[%clk 0:01:23]}  Ne8 {[%clk 0:00:19]} 25. Bd5 {[%clk 0:01:19]}  Kd6 {[%clk 0:00:18]} 26. Ra1 {[%clk 0:01:16]}  cxb4 {[%clk 0:00:17]} 27. cxb4 {[%clk 0:01:15]}  f5 {[%clk 0:00:18]} 28. Nc4+ {[%clk 0:00:58]}  Kc7 {[%clk 0:00:17]} 29. Ra7+ {[%clk 0:00:58]}  Kb8 {[%clk 0:00:16]} 30. Ra8+ {[%clk 0:00:54]}  Kc7 {[%clk 0:00:15]} 31. Rg1 {[%clk 0:00:55]}  Rf6 {[%clk 0:00:13]} 32. Ra7+ {[%clk 0:00:50]}  Kb8 {[%clk 0:00:13]} 33. Rb7+ {[%clk 0:00:50]}  Kc8 {[%clk 0:00:14]} 34. Ra1 {[%clk 0:00:50]}  Nc7 {[%clk 0:00:14]} 35. Raa7 {[%clk 0:00:50]}  Nb8 {[%clk 0:00:12]} 36. Kb3 {[%clk 0:00:31]}  b5 {[%clk 0:00:12]} 37. Na5 {[%clk 0:00:20]}  Rd7 {[%clk 0:00:12]} 38. Ka3 {[%clk 0:00:17]}  Nxd5 {[%clk 0:00:11]} 39. Rxd7 {[%clk 0:00:16]}  Nxd7 {[%clk 0:00:11]} 40. exd5 {[%clk 0:00:17]}  Rd6 {[%clk 0:00:11]} 41. e4 {[%clk 0:00:17]}  Nb6 {[%clk 0:00:10]} 42. Nc6 {[%clk 0:00:15]}  fxe4 {[%clk 0:00:09]} 43. fxe4 {[%clk 0:00:15]}  Nc4+ {[%clk 0:00:08]} 44. Ka2 {[%clk 0:00:16]}  Rf6 {[%clk 0:00:08]} 45. Rxg7 {[%clk 0:00:16]}  Rf2+ {[%clk 0:00:08]} 46. Kb3 {[%clk 0:00:16]}  Rf3+ {[%clk 0:00:08]} 47. Kc2 {[%clk 0:00:16]}  Rf2+ {[%clk 0:00:08]} 48. Kd3 {[%clk 0:00:17]}  Rf3+ {[%clk 0:00:09]} 49. Ke2 {[%clk 0:00:17]}  Re3+ {[%clk 0:00:09]} 50. Kf2 {[%clk 0:00:18]}  Rxe4 {[%clk 0:00:10]} 51. Rxh7 {[%clk 0:00:19]}  Rf4+ {[%clk 0:00:09]} 52. Kg3 {[%clk 0:00:19]}  Ne3 {[%clk 0:00:08]} 53. h6 {[%clk 0:00:18]}  Nxd5 {[%clk 0:00:08]} 54. Rh8+ {[%clk 0:00:17]}  Kd7 {[%clk 0:00:08]} 55. Nxe5+ {[%clk 0:00:17]}  Ke6 {[%clk 0:00:09]} 56. Ng6 {[%clk 0:00:16]}  Rf6 {[%clk 0:00:09]} 57. Nh4 {[%clk 0:00:16]}  Ne3 {[%clk 0:00:09]} 58. Re8+ {[%clk 0:00:16]}  Kf7 {[%clk 0:00:09]} 59. Rxe3 {[%clk 0:00:17]}  Rxh6 {[%clk 0:00:09]} 60. Re5 {[%clk 0:00:17]}  Rc6 {[%clk 0:00:08]} 61. Rxb5 {[%clk 0:00:17]}  Ke6 {[%clk 0:00:08]} 62. Nf3 {[%clk 0:00:17]}  Rc4 {[%clk 0:00:08]} 63. Kf2 {[%clk 0:00:16]}  Kd6 {[%clk 0:00:08]} 64. Nd2 {[%clk 0:00:14]}  Rc2 {[%clk 0:00:08]} 65. Ke3 {[%clk 0:00:14]}  Kc6 {[%clk 0:00:08]} 66. Rh5 {[%clk 0:00:13]}  Kb6 {[%clk 0:00:08]} 67. Kd3 {[%clk 0:00:13]}  Rc8 {[%clk 0:00:08]} 68. Nc4+ {[%clk 0:00:13]}  Kb7 {[%clk 0:00:08]} 69. Nd6+ {[%clk 0:00:12]}  Kc7 {[%clk 0:00:08]} 70. Nxc8 {[%clk 0:00:13]}  Kxc8 {[%clk 0:00:09]} 71. Kc4 {[%clk 0:00:13]}  Kb7 {[%clk 0:00:09]} 72. b5 {[%clk 0:00:13]}  Kb6 {[%clk 0:00:09]} 73. Kb4 {[%clk 0:00:14]}  Kb7 {[%clk 0:00:10]} 74. Kc5 {[%clk 0:00:14]}  Ka7 {[%clk 0:00:10]} 75. Rh7+ {[%clk 0:00:14]}  Kb8 {[%clk 0:00:10]} 76. Kc6 {[%clk 0:00:14]}  Ka8 {[%clk 0:00:10]} 77. b6 {[%clk 0:00:14]}  Kb8 {[%clk 0:00:11]} 78. Rh8# {[%clk 0:00:15]} 1-0


[Site "https://www.chess.com"]

[Event "Titled Tuesday Blitz January 17 Early 2023"]
[White "Gurvich, Vitaly"]
[Black "Manukian, Artak"]
[WhiteFideId "24164852"]
[BlackFideId "13301373"]
[WhiteElo "2278"]
[BlackElo "2196"]
[Result "0-1"]
[Round "02"]
[TimeControl "180+2"]
[Date "2023.01.17"]
[WhiteClock "0:00:02"]
[BlackClock "0:00:11"]

1. d4 {[%clk 0:03:00]}  Nf6 {[%clk 0:02:56]} 2. c4 {[%clk 0:03:00]}  g6 {[%clk 0:02:56]} 3. Nc3 {[%clk 0:03:00]}  Bg7 {[%clk 0:02:57]} 4. e4 {[%clk 0:02:59]}  O-O {[%clk 0:02:58]} 5. Be2 {[%clk 0:02:59]}  d6 {[%clk 0:02:59]} 6. Bg5 {[%clk 0:02:59]}  e5 {[%clk 0:03:00]} 7. dxe5 {[%clk 0:03:00]}  dxe5 {[%clk 0:02:59]} 8. Qxd8 {[%clk 0:03:00]}  Rxd8 {[%clk 0:02:59]} 9. Nd5 {[%clk 0:03:01]}  Rxd5 {[%clk 0:02:59]} 10. exd5 {[%clk 0:02:54]}  Ne4 {[%clk 0:02:54]} 11. Be3 {[%clk 0:02:50]}  c6 {[%clk 0:02:32]} 12. Nf3 {[%clk 0:02:45]}  Na6 {[%clk 0:02:27]} 13. Nd2 {[%clk 0:02:02]}  cxd5 {[%clk 0:02:21]} 14. cxd5 {[%clk 0:02:02]}  Nxd2 {[%clk 0:02:14]} 15. Bxd2 {[%clk 0:01:59]}  Nc7 {[%clk 0:02:11]} 16. Bc4 {[%clk 0:01:46]}  Bf5 {[%clk 0:02:09]} 17. O-O {[%clk 0:01:42]}  Nxd5 {[%clk 0:02:02]} 18. Bxd5 {[%clk 0:01:40]}  Rd8 {[%clk 0:02:02]} 19. Bxf7+ {[%clk 0:01:37]}  Kxf7 {[%clk 0:02:02]} 20. Bc3 {[%clk 0:01:38]}  Ke6 {[%clk 0:01:53]} 21. Rfd1 {[%clk 0:01:37]}  Bf6 {[%clk 0:01:48]} 22. Rxd8 {[%clk 0:01:35]}  Bxd8 {[%clk 0:01:48]} 23. Rd1 {[%clk 0:01:32]}  Bc7 {[%clk 0:01:42]} 24. Kf1 {[%clk 0:01:21]}  a5 {[%clk 0:01:35]} 25. a3 {[%clk 0:01:20]}  a4 {[%clk 0:01:30]} 26. Bb4 {[%clk 0:01:19]}  Be4 {[%clk 0:01:19]} 27. h3 {[%clk 0:01:13]}  h5 {[%clk 0:01:15]} 28. Re1 {[%clk 0:01:04]}  Bd3+ {[%clk 0:01:10]} 29. Kg1 {[%clk 0:01:04]}  e4 {[%clk 0:01:10]} 30. Bc3 {[%clk 0:01:04]}  Kd5 {[%clk 0:01:04]} 31. g4 {[%clk 0:00:58]}  hxg4 {[%clk 0:00:57]} 32. hxg4 {[%clk 0:00:59]}  Bf4 {[%clk 0:00:57]} 33. Kg2 {[%clk 0:00:58]}  b5 {[%clk 0:00:51]} 34. Kh3 {[%clk 0:00:37]}  g5 {[%clk 0:00:48]} 35. Kg2 {[%clk 0:00:35]}  Kc4 {[%clk 0:00:45]} 36. Rh1 {[%clk 0:00:29]}  Kb3 {[%clk 0:00:42]} 37. Rh6 {[%clk 0:00:25]}  Bc1 {[%clk 0:00:38]} 38. f4 {[%clk 0:00:06]}  gxf4 {[%clk 0:00:28]} 39. Rc6 {[%clk 0:00:06]}  f3+ {[%clk 0:00:27]} 40. Kf2 {[%clk 0:00:06]}  Be2 {[%clk 0:00:20]} 41. Bd4 {[%clk 0:00:04]}  Bg5 {[%clk 0:00:18]} 42. Rc3+ {[%clk 0:00:02]}  Ka2 {[%clk 0:00:18]} 43. Be3 {[%clk 0:00:01]}  Bh4+ {[%clk 0:00:18]} 44. Kg1 {[%clk 0:00:02]}  Bf6 {[%clk 0:00:17]} 45. Rc5 {[%clk 0:00:02]}  Bc4 {[%clk 0:00:15]} 46. g5 {[%clk 0:00:03]}  Bxb2 {[%clk 0:00:15]} 47. g6 {[%clk 0:00:03]}  Kxa3 {[%clk 0:00:15]} 48. Rg5 {[%clk 0:00:03]}  Bg7 {[%clk 0:00:13]} 49. Kf2 {[%clk 0:00:03]}  Kb3 {[%clk 0:00:13]} 50. Rg4 {[%clk 0:00:03]}  Bd3 {[%clk 0:00:12]} 51. Rg5 {[%clk 0:00:03]}  a3 {[%clk 0:00:11]} 52. Rg1 {[%clk 0:00:02]}  a2 {[%clk 0:00:11]} 0-1


[Site "https://www.chess.com"]

[Event "Titled Tuesday Blitz January 17 Early 2023"]
[White "Aslanov, Umid"]
[Black "Milikow, Yoav"]
[WhiteFideId "13412620"]
[BlackFideId "2822237"]
[WhiteElo "2273"]
[BlackElo "2394"]
[Result "1-0"]
[Round "02"]
[TimeControl "180+2"]
[Date "2023.01.17"]
[WhiteClock "0:00:20"]
[BlackClock "0:00:43"]

1. e4 {[%clk 0:03:00]}  e6 {[%clk 0:02:56]} 2. d4 {[%clk 0:03:00]}  d5 {[%clk 0:02:57]} 3. Nd2 {[%clk 0:03:01]}  c5 {[%clk 0:02:57]} 4. exd5 {[%clk 0:02:59]}  Qxd5 {[%clk 0:02:58]} 5. Ngf3 {[%clk 0:02:59]}  cxd4 {[%clk 0:02:58]} 6. Bc4 {[%clk 0:03:00]}  Qd6 {[%clk 0:02:58]} 7. O-O {[%clk 0:02:58]}  Nf6 {[%clk 0:02:58]} 8. Nb3 {[%clk 0:02:58]}  Nc6 {[%clk 0:02:58]} 9. Nbxd4 {[%clk 0:02:59]}  Nxd4 {[%clk 0:02:59]} 10. Nxd4 {[%clk 0:03:00]}  a6 {[%clk 0:02:57]} 11. c3 {[%clk 0:02:58]}  Qc7 {[%clk 0:02:56]} 12. Bb3 {[%clk 0:02:57]}  Bd6 {[%clk 0:02:53]} 13. Bg5 {[%clk 0:02:47]}  Bxh2+ {[%clk 0:02:52]} 14. Kh1 {[%clk 0:02:47]}  Be5 {[%clk 0:02:51]} 15. f4 {[%clk 0:02:39]}  Bd6 {[%clk 0:02:43]} 16. Bxf6 {[%clk 0:02:33]}  gxf6 {[%clk 0:02:43]} 17. Qh5 {[%clk 0:02:29]}  Qc5 {[%clk 0:02:37]} 18. f5 {[%clk 0:02:21]}  Ke7 {[%clk 0:02:20]} 19. Rae1 {[%clk 0:02:17]}  Be5 {[%clk 0:02:18]} 20. fxe6 {[%clk 0:02:03]}  Bxe6 {[%clk 0:02:13]} 21. Nxe6 {[%clk 0:01:53]}  fxe6 {[%clk 0:02:14]} 22. Rxf6 {[%clk 0:01:49]}  Kxf6 {[%clk 0:02:04]} 23. Qh6+ {[%clk 0:01:48]}  Ke7 {[%clk 0:01:59]} 24. Qxe6+ {[%clk 0:01:47]}  Kd8 {[%clk 0:02:00]} 25. Rxe5 {[%clk 0:01:45]}  Qc6 {[%clk 0:01:58]} 26. Rd5+ {[%clk 0:01:27]}  Kc7 {[%clk 0:01:58]} 27. Qe5+ {[%clk 0:01:27]}  Kb6 {[%clk 0:01:56]} 28. Rd6 {[%clk 0:01:27]}  Rhe8 {[%clk 0:01:49]} 29. Qd4+ {[%clk 0:01:25]}  Kc7 {[%clk 0:01:49]} 30. Rxc6+ {[%clk 0:01:25]}  bxc6 {[%clk 0:01:50]} 31. Qg7+ {[%clk 0:01:25]}  Kb6 {[%clk 0:01:51]} 32. Qd4+ {[%clk 0:01:24]}  Kc7 {[%clk 0:01:51]} 33. Bc2 {[%clk 0:01:08]}  Re2 {[%clk 0:01:48]} 34. Be4 {[%clk 0:01:06]}  Re8 {[%clk 0:01:46]} 35. Bf3 {[%clk 0:01:05]}  Rxb2 {[%clk 0:01:45]} 36. Qc4 {[%clk 0:01:03]}  Re1+ {[%clk 0:01:43]} 37. Kh2 {[%clk 0:01:02]}  Rb6 {[%clk 0:01:42]} 38. Qf7+ {[%clk 0:01:01]}  Kb8 {[%clk 0:01:42]} 39. a4 {[%clk 0:00:58]}  Ra1 {[%clk 0:01:36]} 40. Qe8+ {[%clk 0:00:57]}  Ka7 {[%clk 0:01:36]} 41. Bxc6 {[%clk 0:00:57]}  Rb8 {[%clk 0:01:31]} 42. Qd7+ {[%clk 0:00:53]}  Kb6 {[%clk 0:01:31]} 43. Bf3 {[%clk 0:00:49]}  Rb1 {[%clk 0:01:25]} 44. Be4 {[%clk 0:00:46]}  Rb2 {[%clk 0:01:24]} 45. c4 {[%clk 0:00:45]}  Ka5 {[%clk 0:01:23]} 46. c5 {[%clk 0:00:42]}  R8b4 {[%clk 0:01:23]} 47. Bf3 {[%clk 0:00:39]}  R4b3 {[%clk 0:01:21]} 48. c6 {[%clk 0:00:38]}  Rxf3 {[%clk 0:01:20]} 49. c7 {[%clk 0:00:39]}  Rc3 {[%clk 0:01:16]} 50. c8=Q {[%clk 0:00:36]}  Rxc8 {[%clk 0:01:17]} 51. Qxc8 {[%clk 0:00:37]}  Rb4 {[%clk 0:01:14]} 52. Qc7+ {[%clk 0:00:36]}  Kxa4 {[%clk 0:01:14]} 53. Qxh7 {[%clk 0:00:37]}  a5 {[%clk 0:01:14]} 54. Qd7+ {[%clk 0:00:36]}  Kb3 {[%clk 0:01:14]} 55. g4 {[%clk 0:00:37]}  a4 {[%clk 0:01:13]} 56. g5 {[%clk 0:00:36]}  a3 {[%clk 0:01:12]} 57. Qd3+ {[%clk 0:00:36]}  Kb2 {[%clk 0:01:10]} 58. Qd2+ {[%clk 0:00:30]}  Kb3 {[%clk 0:01:10]} 59. g6 {[%clk 0:00:25]}  a2 {[%clk 0:01:07]} 60. g7 {[%clk 0:00:25]}  Rb8 {[%clk 0:00:56]} 61. Qd5+ {[%clk 0:00:20]}  Ka3 {[%clk 0:00:47]} 62. Qd6+ {[%clk 0:00:19]}  Rb4 {[%clk 0:00:47]} 63. g8=Q {[%clk 0:00:19]}  a1=Q {[%clk 0:00:47]} 64. Qa8+ {[%clk 0:00:19]}  Kb3 {[%clk 0:00:46]} 65. Qxa1 {[%clk 0:00:20]}  Rh4+ {[%clk 0:00:45]} 66. Kg3 {[%clk 0:00:20]}  Rg4+ {[%clk 0:00:43]} 67. Kxg4 {[%clk 0:00:20]} 1-0


[Site "https://www.chess.com"]

[Event "Titled Tuesday Blitz January 17 Early 2023"]
[White "Guliev, Logman"]
[Black "Costachi, Mihnea"]
[WhiteFideId "13400061"]
[BlackFideId "1217518"]
[WhiteElo "2250"]
[BlackElo "2476"]
[Result "1/2-1/2"]
[Round "02"]
[TimeControl "180+2"]
[Date "2023.01.17"]
[WhiteClock "0:00:13"]
[BlackClock "0:00:06"]

1. e4 {[%clk 0:03:00]}  c5 {[%clk 0:02:58]} 2. Nf3 {[%clk 0:03:00]}  Nc6 {[%clk 0:02:58]} 3. d4 {[%clk 0:02:58]}  cxd4 {[%clk 0:02:58]} 4. Nxd4 {[%clk 0:02:59]}  g6 {[%clk 0:02:58]} 5. c4 {[%clk 0:02:59]}  Bg7 {[%clk 0:02:57]} 6. Be3 {[%clk 0:02:59]}  Qb6 {[%clk 0:02:57]} 7. Nb3 {[%clk 0:02:58]}  Qd8 {[%clk 0:02:57]} 8. Nc3 {[%clk 0:02:57]}  Nf6 {[%clk 0:02:55]} 9. Rc1 {[%clk 0:02:55]}  O-O {[%clk 0:02:55]} 10. Be2 {[%clk 0:02:55]}  d6 {[%clk 0:02:55]} 11. O-O {[%clk 0:02:56]}  h5 {[%clk 0:02:45]} 12. h3 {[%clk 0:02:53]}  Bd7 {[%clk 0:02:42]} 13. Bd3 {[%clk 0:02:51]}  Ne5 {[%clk 0:02:40]} 14. f4 {[%clk 0:02:42]}  Nxd3 {[%clk 0:02:39]} 15. Qxd3 {[%clk 0:02:43]}  Bc6 {[%clk 0:02:36]} 16. Nd5 {[%clk 0:02:40]}  Nxd5 {[%clk 0:02:34]} 17. cxd5 {[%clk 0:02:31]}  Bd7 {[%clk 0:02:32]} 18. Bd4 {[%clk 0:02:32]}  a6 {[%clk 0:02:22]} 19. Bxg7 {[%clk 0:02:30]}  Kxg7 {[%clk 0:02:22]} 20. Nd4 {[%clk 0:02:30]}  Qb6 {[%clk 0:02:17]} 21. Kh2 {[%clk 0:02:21]}  Rac8 {[%clk 0:02:13]} 22. b3 {[%clk 0:02:13]}  Bb5 {[%clk 0:02:10]} 23. Qe3 {[%clk 0:02:06]}  Bxf1 {[%clk 0:01:59]} 24. Rxc8 {[%clk 0:01:56]}  Rxc8 {[%clk 0:01:21]} 25. Ne6+ {[%clk 0:01:47]}  fxe6 {[%clk 0:01:22]} 26. Qxb6 {[%clk 0:01:47]}  exd5 {[%clk 0:01:23]} 27. Qxb7 {[%clk 0:01:46]}  Rc2 {[%clk 0:01:23]} 28. Qxe7+ {[%clk 0:01:46]}  Kg8 {[%clk 0:01:22]} 29. f5 {[%clk 0:01:14]}  gxf5 {[%clk 0:00:23]} 30. Qg5+ {[%clk 0:01:08]}  Kh8 {[%clk 0:00:18]} 31. Qxh5+ {[%clk 0:01:08]}  Kg7 {[%clk 0:00:17]} 32. Qg5+ {[%clk 0:01:07]}  Kh8 {[%clk 0:00:18]} 33. exf5 {[%clk 0:00:53]}  Rxa2 {[%clk 0:00:10]} 34. Kg1 {[%clk 0:00:36]}  Rxg2+ {[%clk 0:00:10]} 35. Qxg2 {[%clk 0:00:35]}  Bxg2 {[%clk 0:00:10]} 36. Kxg2 {[%clk 0:00:36]}  Kg7 {[%clk 0:00:11]} 37. h4 {[%clk 0:00:35]}  Kf6 {[%clk 0:00:11]} 38. Kf3 {[%clk 0:00:34]}  Kxf5 {[%clk 0:00:12]} 39. Ke3 {[%clk 0:00:35]}  Kg4 {[%clk 0:00:06]} 40. Kd4 {[%clk 0:00:36]}  Kxh4 {[%clk 0:00:06]} 41. Kxd5 {[%clk 0:00:36]}  Kg4 {[%clk 0:00:03]} 42. Kxd6 {[%clk 0:00:37]}  Kf4 {[%clk 0:00:04]} 43. Kc5 {[%clk 0:00:37]}  Ke4 {[%clk 0:00:05]} 44. Kc4 {[%clk 0:00:18]}  Ke3 {[%clk 0:00:05]} 45. b4 {[%clk 0:00:15]}  Kd2 {[%clk 0:00:05]} 46. Kb3 {[%clk 0:00:12]}  Kd3 {[%clk 0:00:05]} 47. Ka4 {[%clk 0:00:11]}  Kc4 {[%clk 0:00:05]} 48. Ka5 {[%clk 0:00:12]}  Kb3 {[%clk 0:00:05]} 49. Kxa6 {[%clk 0:00:13]}  Kxb4 {[%clk 0:00:06]} 1/2-1/2


[Site "https://www.chess.com"]

[Event "Titled Tuesday Blitz January 17 Early 2023"]
[White "Ashraf, Artin"]
[Black "Jiang, Andrew"]
[WhiteFideId "22514805"]
[BlackFideId "30953510"]
[WhiteElo "2314"]
[BlackElo "2201"]
[Result "1-0"]
[Round "02"]
[TimeControl "180+2"]
[Date "2023.01.17"]
[WhiteClock "0:01:01"]
[BlackClock "0:01:44"]

1. e4 {[%clk 0:02:59]}  e5 {[%clk 0:02:59]} 2. Nf3 {[%clk 0:02:59]}  Nc6 {[%clk 0:02:59]} 3. Bb5 {[%clk 0:02:59]}  a6 {[%clk 0:02:59]} 4. Ba4 {[%clk 0:02:59]}  Nf6 {[%clk 0:02:59]} 5. O-O {[%clk 0:02:58]}  Nxe4 {[%clk 0:02:53]} 6. d4 {[%clk 0:02:57]}  b5 {[%clk 0:02:50]} 7. Bb3 {[%clk 0:02:54]}  d5 {[%clk 0:02:49]} 8. dxe5 {[%clk 0:02:48]}  Be6 {[%clk 0:02:49]} 9. c3 {[%clk 0:02:46]}  Bc5 {[%clk 0:02:46]} 10. Nbd2 {[%clk 0:02:46]}  Qe7 {[%clk 0:02:40]} 11. Bc2 {[%clk 0:02:43]}  Ng5 {[%clk 0:02:36]} 12. Nxg5 {[%clk 0:02:15]}  Qxg5 {[%clk 0:02:35]} 13. Ne4 {[%clk 0:02:14]}  Qe7 {[%clk 0:02:32]} 14. Bg5 {[%clk 0:02:13]}  Qf8 {[%clk 0:02:29]} 15. Ng3 {[%clk 0:02:03]}  Nxe5 {[%clk 0:02:25]} 16. Re1 {[%clk 0:01:59]}  Qd6 {[%clk 0:02:23]} 17. Nh5 {[%clk 0:01:18]}  O-O {[%clk 0:02:18]} 18. Rxe5 {[%clk 0:01:16]}  f6 {[%clk 0:01:51]} 19. Qd3 {[%clk 0:01:02]}  Qxe5 {[%clk 0:01:46]} 20. Qxh7+ {[%clk 0:01:01]}  Kf7 {[%clk 0:01:46]} 21. Qxg7+ {[%clk 0:01:01]}  Ke8 {[%clk 0:01:44]} 22. Nxf6+ {[%clk 0:01:01]} 1-0


[Site "https://www.chess.com"]

[Event "Titled Tuesday Blitz January 17 Early 2023"]
[White "Luong Phuong Hanh"]
[Black "Srihari L R"]
[WhiteFideId "12401013"]
[BlackFideId "46617116"]
[WhiteElo "2029"]
[BlackElo "2416"]
[Result "1/2-1/2"]
[Round "02"]
[TimeControl "180+2"]
[Date "2023.01.17"]
[WhiteClock "0:00:07"]
[BlackClock "0:00:03"]

1. d4 {[%clk 0:02:53]}  d5 {[%clk 0:02:53]} 2. c4 {[%clk 0:02:53]}  Nc6 {[%clk 0:02:52]} 3. Nf3 {[%clk 0:02:52]}  e6 {[%clk 0:02:46]} 4. e3 {[%clk 0:02:50]}  Nf6 {[%clk 0:02:36]} 5. Nc3 {[%clk 0:02:48]}  a6 {[%clk 0:02:29]} 6. Bd2 {[%clk 0:02:46]}  dxc4 {[%clk 0:02:22]} 7. Bxc4 {[%clk 0:02:46]}  Bd6 {[%clk 0:02:22]} 8. O-O {[%clk 0:02:44]}  O-O {[%clk 0:02:21]} 9. e4 {[%clk 0:02:41]}  e5 {[%clk 0:02:17]} 10. d5 {[%clk 0:02:27]}  Ne7 {[%clk 0:01:56]} 11. h3 {[%clk 0:02:20]}  h6 {[%clk 0:01:47]} 12. Rc1 {[%clk 0:02:18]}  Ng6 {[%clk 0:01:46]} 13. Be3 {[%clk 0:02:14]}  Qe7 {[%clk 0:01:43]} 14. a3 {[%clk 0:02:13]}  Nh5 {[%clk 0:01:41]} 15. Ne2 {[%clk 0:01:55]}  Nhf4 {[%clk 0:01:39]} 16. Nxf4 {[%clk 0:01:55]}  exf4 {[%clk 0:01:38]} 17. Bd4 {[%clk 0:01:54]}  Qxe4 {[%clk 0:01:34]} 18. Re1 {[%clk 0:01:37]}  Qf5 {[%clk 0:01:33]} 19. Bd3 {[%clk 0:01:37]}  Qh5 {[%clk 0:01:27]} 20. Bxg6 {[%clk 0:01:28]}  Qxg6 {[%clk 0:01:15]} 21. Kh1 {[%clk 0:01:27]}  Qh5 {[%clk 0:01:07]} 22. Be5 {[%clk 0:01:26]}  Rd8 {[%clk 0:00:25]} 23. Bxd6 {[%clk 0:00:55]}  Rxd6 {[%clk 0:00:24]} 24. Re5 {[%clk 0:00:46]}  g5 {[%clk 0:00:15]} 25. Rxc7 {[%clk 0:00:41]}  Bxh3 {[%clk 0:00:13]} 26. gxh3 {[%clk 0:00:41]}  Qxh3+ {[%clk 0:00:13]} 27. Nh2 {[%clk 0:00:40]}  Rad8 {[%clk 0:00:10]} 28. Qg4 {[%clk 0:00:20]}  Qd3 {[%clk 0:00:08]} 29. Qf5 {[%clk 0:00:17]}  Qxf5 {[%clk 0:00:06]} 30. Rxf5 {[%clk 0:00:17]}  R8d7 {[%clk 0:00:06]} 31. Rxd7 {[%clk 0:00:16]}  Rxd7 {[%clk 0:00:07]} 32. Ng4 {[%clk 0:00:16]}  Kg7 {[%clk 0:00:07]} 33. Ne5 {[%clk 0:00:12]}  Rxd5 {[%clk 0:00:07]} 34. Rxf7+ {[%clk 0:00:12]}  Kg8 {[%clk 0:00:07]} 35. Re7 {[%clk 0:00:12]}  b5 {[%clk 0:00:06]} 36. Ng4 {[%clk 0:00:11]}  Rd6 {[%clk 0:00:04]} 37. Kg2 {[%clk 0:00:10]}  h5 {[%clk 0:00:05]} 38. Ne5 {[%clk 0:00:10]}  g4 {[%clk 0:00:05]} 39. Ra7 {[%clk 0:00:08]}  Rd2 {[%clk 0:00:03]} 40. Ng6 {[%clk 0:00:04]}  g3 {[%clk 0:00:03]} 41. Nxf4 {[%clk 0:00:04]}  gxf2 {[%clk 0:00:03]} 42. Nh3 {[%clk 0:00:04]}  f1=Q+ {[%clk 0:00:02]} 43. Kxf1 {[%clk 0:00:04]}  Rxb2 {[%clk 0:00:03]} 44. Rxa6 {[%clk 0:00:04]}  b4 {[%clk 0:00:03]} 45. axb4 {[%clk 0:00:04]}  Rxb4 {[%clk 0:00:04]} 46. Kg2 {[%clk 0:00:04]}  Rg4+ {[%clk 0:00:04]} 47. Kf3 {[%clk 0:00:03]}  Kh7 {[%clk 0:00:05]} 48. Nf4 {[%clk 0:00:04]}  Rg5 {[%clk 0:00:04]} 49. Ra7+ {[%clk 0:00:04]}  Kh6 {[%clk 0:00:04]} 50. Ra1 {[%clk 0:00:05]}  h4 {[%clk 0:00:04]} 51. Rh1 {[%clk 0:00:06]}  Ra5 {[%clk 0:00:02]} 52. Rxh4+ {[%clk 0:00:06]}  Kg7 {[%clk 0:00:03]} 53. Kg4 {[%clk 0:00:07]}  Ra4 {[%clk 0:00:03]} 54. Rh5 {[%clk 0:00:06]}  Rb4 {[%clk 0:00:03]} 55. Rg5+ {[%clk 0:00:07]}  Kf7 {[%clk 0:00:02]} 56. Kf5 {[%clk 0:00:06]}  Rb5+ {[%clk 0:00:02]} 57. Kg4 {[%clk 0:00:06]}  Rxg5+ {[%clk 0:00:03]} 58. Kxg5 {[%clk 0:00:07]} 1/2-1/2


[Site "https://www.chess.com"]